fUST/lending_fUST_20251030
["ID","MTS","AMOUNT","RATE_DAILY","PERIOD"]
[392662282,1761792648133,-513.06482897,0.00028331,4]
[392662283,1761792648143,-507.66954541,0.00028331,4]
[392662284,1761792648153,-507.57374216,0.00028331,4]
[392662285,1761792648162,-515.70271054,0.00028331,4]
[392662286,1761792648171,-482.48010708,0.00028331,4]
[392662287,1761792648181,-512.99741969,0.00028331,4]
[392662288,1761792648190,-500.0,0.00028331,4]
[392662289,1761792648201,-500.82850471,0.00028331,4]
[392662290,1761792648210,-502.32637631,0.00028331,4]
[392662291,1761792648220,-501.19407676,0.00028331,4]
[392662292,1761792648228,-500.0,0.00028331,4]
[392662293,1761792648238,-504.98782971,0.00028331,4]
[392662294,1761792648247,-532.98912053,0.00028331,4]
[392662295,1761792648256,-514.02815348,0.00028331,4]
[392662296,1761792648265,-502.61564684,0.00028331,4]
[392662297,1761792648274,-500.64231428,0.00028331,4]
[392662298,1761792648283,-519.02194229,0.00028331,4]
[392662299,1761792648292,-554.87582555,0.00028331,4]
[392662300,1761792648301,-504.89198586,0.00028331,4]
[392662301,1761792648310,-506.12582282,0.00028331,4]
[392662302,1761792648319,-503.34386494,0.00028331,4]
[392662303,1761792648328,-501.08230847,0.00028331,4]
[392662304,1761792648337,-501.55429331,0.00028331,4]
[392662305,1761792648345,-525.77977157,0.00028331,4]
[392662306,1761792648355,-511.70731954,0.00028331,4]
[392662307,1761792648364,-500.0,0.00028331,4]
[392662308,1761792648373,-507.60551463,0.00028331,4]
[392662309,1761792648382,-599.75293745,0.00028331,4]
[392662310,1761792648391,-503.2235712,0.00028331,4]
[392662311,1761792648400,-505.84253208,0.00028331,4]
[392662312,1761792648409,-506.39770339,0.00028331,4]
[392662313,1761792648418,-503.16364242,0.00028331,4]
[392662314,1761792648427,-520.10913944,0.00028331,4]
[392662315,1761792648436,-501.63345642,0.00028331,4]
[392662316,1761792648445,-515.15728693,0.00028331,4]
[392662317,1761792648454,-500.82049052,0.00028331,4]
[392662318,1761792648463,-500.76612633,0.00028331,4]
[392662319,1761792648472,-500.63747955,0.00028331,4]
[392662320,1761792648481,-523.46188084,0.00028331,4]
[392662321,1761792648490,-511.81257308,0.00028331,4]
[392662322,1761792648500,-505.00071273,0.00028331,4]
[392662323,1761792648509,-502.4981746,0.00028331,4]
[392662324,1761792648518,-500.0,0.00028331,4]
[392662325,1761792648527,-501.42568807,0.00028331,4]
[392662326,1761792648536,-528.26836201,0.00028331,4]
[392662327,1761792648545,-501.71011638,0.00028331,4]
[392662328,1761792648554,-506.14956728,0.00028331,4]
[392662329,1761792648564,-503.96128218,0.00028331,2]
[392662330,1761792648573,-500.87680096,0.00028331,4]
[392662331,1761792648582,-511.09730538,0.00028331,4]
[392662332,1761792648591,-503.94017782,0.00028331,4]
[392662333,1761792648600,-506.91189236,0.00028331,4]
[392662334,1761792648609,-501.24018731,0.00028331,4]
[392662335,1761792648618,-500.0,0.00028331,4]
[392662336,1761792648627,-151.017359,0.00028331,31]
[392662337,1761792648637,-502.07779528,0.00028331,4]
[392662338,1761792648646,-500.77365508,0.00028331,4]
[392662339,1761792648658,-501.73330734,0.00028331,4]
[392662340,1761792648667,-500.0,0.00028331,4]
[392662341,1761792648676,-501.13262578,0.00028331,4]
[392662342,1761792648685,-500.0,0.00028331,4]
[392662343,1761792648694,-500.69144411,0.00028331,4]
[392662344,1761792648703,-500.70053754,0.00028331,4]
[392662345,1761792648713,-500.59246202,0.00028331,4]
[392662346,1761792648722,-500.86592727,0.00028331,4]
[392662347,1761792648731,-502.09257251,0.00028331,4]
[392662348,1761792648740,-190.74075173,0.00028331,4]
[392662349,1761792648750,-502.35336204,0.00028331,4]
[392662350,1761792648760,-448.49318097,0.00028331,4]
[392662351,1761792648771,-502.5063304,0.00028331,4]
[392662352,1761792648780,-1143.72,0.00028331,4]
[392662353,1761792648789,-151.0,0.00028331,31]
[392662354,1761792648798,-500.0,0.00028341,4]
[392662355,1761792648809,-500.0,0.00028342,4]
[392662356,1761792648819,-500.0,0.00028342,4]
[392662357,1761792648828,-500.0,0.00028343,4]
[392662358,1761792648837,-507.09846701,0.00028343,4]
[392662359,1761792648846,-500.0,0.00028343,4]
[392662360,1761792648854,-500.0,0.00028343,4]
[392662361,1761792648864,-500.0,0.00028343,15]
[392662362,1761792648874,-500.0,0.00028372,4]
[392662363,1761792648882,-396.56327989,0.00028373,5]
[392662364,1761792648891,-500.32740196,0.00028373,5]
[392662365,1761792648900,-442.45667204,0.00028373,5]
[392662366,1761792648909,-335.01132456,0.00028373,5]
[392662367,1761792648918,-500.45906278,0.00028373,5]
[392662368,1761792648928,-502.36128137,0.00028373,5]
[392662369,1761792648938,-500.0,0.00028373,5]
[392662370,1761792648948,-501.58981089,0.00028373,5]
[392662371,1761792648958,-1032.53,0.000284,2]
[392662372,1761792648967,-2174.18877015,0.00028456,2]
[392662373,1761792648976,-1500.0,0.00028468,5]
[392662374,1761792648987,-500.0,0.00028493,4]
[392662375,1761792648997,-500.0,0.00028493,4]
[392662376,1761792649005,-500.0,0.00028493,4]
[392662377,1761792649014,-324.46710181,0.00028546,2]
[392662378,1761792649023,-296.63967111,0.00028563,2]
[392662379,1761792649033,-150.0,0.00028567,30]
[392662380,1761792649043,-1143.72,0.00028605,4]
[392662381,1761792649054,-748.79442239,0.00028607,2]
[392662382,1761792649062,-938.90826442,0.00028607,2]
[392662383,1761792649072,-500.0,0.00028617,15]
[392662384,1761792649081,-500.0,0.00028617,4]
[392662385,1761792649092,-2265.47300607,0.0002869,4]
[392662386,1761792649103,-2174.18877015,0.00028738,2]
[392662387,1761792649114,-500.0,0.00028767,4]
[392662388,1761792649123,-639.00923436,0.00028767,4]
[392662389,1761792649133,-420.0,0.00028767,2]
[392662390,1761792649144,-1296.57053882,0.00028831,2]
[392662391,1761792649153,-1143.72,0.00028879,4]
[392662392,1761792649163,-536.5,0.00028891,15]
[392662393,1761792649172,-500.0,0.00028891,4]
[392662394,1761792649182,-256.8,0.000289,5]
[392662395,1761792649191,-1000.0,0.00028921,5]
[392662396,1761792649202,-2174.18877015,0.00028963,2]
[392662397,1761792649211,-1497.58884478,0.0002898,2]
[392662398,1761792649221,-1877.81652884,0.0002898,2]
[392662399,1761792649231,-2000.0,0.00029016,5]
[392662400,1761792649241,-500.0,0.00029041,4]
[392662401,1761792649250,-1143.72,0.00029153,4]
[392662402,1761792649261,-500.0,0.00029164,4]
[392662403,1761792649270,-500.0,0.00029165,4]
[392662404,1761792649281,-2174.18877015,0.00029185,2]
[392662405,1761792649290,-1006.45,0.000292,20]
[392662406,1761792649299,-471.68272026,0.00029293,2]
[392662407,1761792649308,-500.0,0.0002931,4]
[392662408,1761792649317,-621.74977816,0.0002931,4]
[392662409,1761792649326,-500.0,0.0002931,4]
[392662410,1761792649334,-373.70297017,0.0002931,4]
[392662411,1761792649345,-500.0,0.00029315,4]
[392662412,1761792649354,-2174.18877015,0.00029318,2]
[392662413,1761792649364,-7057.17282228,0.00029337,2]
[392662414,1761792649374,-592.47700246,0.0002938,2]
[392662415,1761792649384,-1143.72,0.00029427,4]
[392662416,1761792649394,-500.0,0.00029439,4]
[392662417,1761792649403,-1500.0,0.00029468,5]
[392662418,1761792649414,-2500.0,0.00029564,5]
[392662419,1761792649423,-500.0,0.00029589,4]
[392662420,1761792649434,-748.79442239,0.00029602,2]
[392662421,1761792649444,-938.90826442,0.00029602,2]
[392662422,1761792649454,-1229.24881761,0.00029628,2]
[392662423,1761792649463,-500.0,0.00029631,4]
[392662424,1761792649472,-15463.74,0.00029664,2]
[392662425,1761792649481,-2317.88,0.0002968,3]
[392662426,1761792649491,-2317.88,0.00029681,3]
[392662427,1761792649500,-393.5793405,0.00029682,30]
[392662428,1761792649509,-3028.24,0.0002969,3]
[392662429,1761792649518,-1514.12,0.0002969,3]
[392662430,1761792649527,-757.06,0.0002969,3]
[392662431,1761792649536,-378.52,0.0002969,3]
[392662432,1761792649546,-1158.94,0.0002969,3]
[392662433,1761792649556,-579.46,0.0002969,3]
[392662434,1761792649564,-1303.8,0.0002969,3]
[392662435,1761792649575,-161.047185,0.000297,10]
[392662436,1761792649584,-4530.94,0.000297,5]
[392662437,1761792649592,-1143.72,0.00029701,4]
[392662438,1761792649602,-256.8,0.00029705,5]
[392662439,1761792649612,-500.0,0.00029713,4]
[392662440,1761792649621,-2174.18877015,0.00029793,2]
[392662441,1761792649631,-500.0,0.00029861,4]
[392662442,1761792649641,-599.38,0.00029863,4]
[392662443,1761792649650,-748.79442239,0.00029867,2]
[392662444,1761792649659,-938.90826442,0.00029867,2]
[392662445,1761792649668,-500.0,0.00029876,4]
[392662446,1761792649678,-28414.7144699,0.00029877,2]
[392662447,1761792649687,-510.60437922,0.00029944,4]
[392662448,1761792649697,-3743.97211195,0.00029953,2]
[392662449,1761792649706,-4694.5413221,0.00029953,2]
[392662450,1761792649715,-220515.29074831,0.00029963,2]
[392662451,1761792649725,-1143.72,0.00029975,4]
[392662452,1761792649735,-500.0,0.00029987,4]
[392662453,1761792649744,-100000.0,0.0002999,2]
[392662454,1761792649753,-2000.0,0.00030016,5]
[392662455,1761792649765,-196.0,0.00030085,2]
[392662456,1761792649775,-3000.0,0.00030112,5]
[392662457,1761792649784,-196.0,0.00030164,2]
[392662458,1761792649792,-1143.72,0.00030249,4]
[392662459,1761792649803,-500.0,0.00030261,4]
[392662460,1761792649812,-196.0,0.00030268,2]
[392662461,1761792649821,-5086.58,0.000303,7]
[392662462,1761792649831,-2174.18877015,0.00030314,2]
[392662463,1761792649937,-196.0,0.00030353,2]
[392662464,1761792649948,-503.18503766,0.0003037,30]
[392662465,1761792649957,-196.0,0.00030399,2]
[392662466,1761792649966,-196.0,0.00030421,2]
[392662467,1761792649975,-1884.84415014,0.00030427,2]
[392662468,1761792649985,-7057.17282228,0.00030443,2]
[392662469,1761792649995,-2174.18877015,0.00030451,2]
[392662470,1761792650005,-256.8,0.00030511,5]
[392662471,1761792650014,-1143.72,0.00030523,4]
[392662472,1761792650023,-500.0,0.00030535,4]
[392662473,1761792650032,-2500.0,0.00030564,5]
[392662474,1761792650043,-748.79442239,0.0003059,2]
[392662475,1761792650051,-938.90826442,0.0003059,2]
[392662476,1761792650060,-1032.53,0.000306,2]
[392662477,1761792650069,-196.0,0.00030603,2]
[392662478,1761792650078,-947.056918,0.0003061,2]
[392662479,1761792650087,-196.0,0.00030624,2]
[392662480,1761792650096,-3500.0,0.0003066,5]
[392662481,1761792650106,-2000.0,0.00030685,120]
[392662482,1761792650115,-1143.72,0.00030797,4]
[392662483,1761792650125,-500.0,0.00030809,4]
[392662484,1761792650134,-196.0,0.00030832,2]
[392662485,1761792650144,-2174.18877015,0.00030876,2]
[392662486,1761792650153,-196.0,0.00030933,2]
[392662487,1761792650162,-150.0,0.00030982,30]
[392662488,1761792650171,-196.0,0.00030995,2]
[392662489,1761792650180,-15463.74,0.00030998,2]
[392662490,1761792650190,-242.64491122,0.00031,120]
[392662491,1761792650199,-190.83955446,0.00031,120]
[392662492,1761792650208,-161.25978237,0.00031041,10]
[392662493,1761792650218,-166.93939009,0.00031041,10]
[392662494,1761792650227,-1143.72,0.00031071,4]
[392662495,1761792650236,-196.0,0.00031081,7]
[392662496,1761792650245,-500.0,0.00031083,4]
[392662497,1761792650254,-1934.20271202,0.00031112,5]
[392662498,1761792650263,-587.0,0.00031113,2]
[392662499,1761792650272,-2174.18877015,0.00031206,2]
[392662500,1761792650282,-4000.0,0.00031208,5]
[392662501,1761792650291,-2000.0,0.00031233,120]
[392662502,1761792650301,-806.29656964,0.00031246,2]
[392662503,1761792650310,-195.164541,0.000313,2]
[392662504,1761792650320,-256.8,0.00031316,6]
[392662505,1761792650328,-2174.18877015,0.00031343,2]
[392662506,1761792650338,-1143.72,0.00031345,4]
[392662507,1761792650346,-500.0,0.00031357,4]
[392662508,1761792650355,-648.60640269,0.0003138,2]
[392662509,1761792650364,-300.0,0.000314,120]
[392662510,1761792650373,-196.0,0.00031424,7]
[392662511,1761792650382,-168.83622189,0.00031479,2]
[392662512,1761792650391,-1043.0,0.00031544,2]
[392662513,1761792650400,-7057.17282228,0.0003155,2]
[392662514,1761792650409,-1143.72,0.00031619,4]
[392662515,1761792650418,-295.78432624,0.00031631,4]
[392662516,1761792650427,-2174.18877022,0.00031679,2]
[392662517,1761792650436,-152.277618,0.0003168,30]
[392662518,1761792650444,-152.27762,0.0003168,30]
[392662519,1761792650454,-4500.0,0.00031756,5]
[392662520,1761792650463,-196.0,0.00031772,2]
[392662521,1761792650474,-748.79442239,0.00031777,2]
[392662522,1761792650483,-938.90826442,0.00031777,2]
[392662523,1761792650493,-2000.0,0.00031781,120]
[392662524,1761792650502,-5790.46551375,0.00031788,2]
[392662525,1761792655347,500.0,0.00021917,2]
[392662526,1761792713521,270.37882472,0.0002589,2]
[392662527,1761792765064,5000.0,0.0002449,2]
[392662528,1761792787410,3552.77206112,0.0002449,2]
[392662529,1761792787432,842.95136952,0.0002449,2]
[392662530,1761792800138,3000.0,0.000224,2]
[392662531,1761792801883,3000.0,0.0002241,2]
[392662532,1761792802338,3000.0,0.0002242,2]
[392662533,1761792802853,157.05863048,0.0002243,2]
[392662534,1761792802880,2842.94136952,0.0002243,2]
[392662535,1761792803329,3000.0,0.0002244,2]
[392662536,1761792803852,3000.0,0.0002245,2]
[392662537,1761792804250,1157.06863048,0.0002246,2]
[392662538,1761792804273,1842.93136952,0.0002246,2]
[392662539,1761792804930,3000.0,0.0002247,2]
[392662540,1761792805387,3000.0,0.0002248,2]
[392662541,1761792805854,2157.07863048,0.0002249,2]
[392662542,1761792805879,842.92136952,0.0002249,2]
[392662543,1761792806562,3000.0,0.000225,2]
[392662544,1761792807229,3000.0,0.0002251,2]
[392662545,1761792807719,3000.0,0.0002252,2]
[392662546,1761792808294,157.08863048,0.0002253,2]
[392662547,1761792808317,2842.91136952,0.0002253,2]
[392662548,1761792808819,3000.0,0.0002254,2]
[392662549,1761792809201,3000.0,0.0002255,2]
[392662550,1761792809657,1157.09863048,0.0002256,2]
[392662551,1761792809679,1842.90136952,0.0002256,2]
[392662552,1761792810295,3000.0,0.0002257,2]
[392662553,1761792810850,3000.0,0.0002258,2]
[392662554,1761792812233,2157.10863048,0.0002259,2]
[392662555,1761792812392,842.89136952,0.0002259,2]
[392662556,1761792812707,4267.895161,0.000226,2]
[392662557,1761792818174,303.07947686,0.00016814,2]
[392662558,1761792818840,303.07947686,0.00016814,2]
[392662559,1761792819531,303.07947686,0.00016814,2]
[392662560,1761792831374,3979.9850389,0.0002449,2]
[392662561,1761792831396,9.14086435,0.0002449,2]
[392662562,1761792845900,150.0,0.00012608,30]
[392662563,1761792846392,150.0,0.00013754,30]
[392662564,1761792848465,479.52743777,0.00021917,2]
[392662565,1761792866034,-5000.0,0.00024953,2]
[392662566,1761792883905,0.01,0.00024953,2]
[392662567,1761792883942,2546.42617503,0.00024953,2]
[392662568,1761792920414,150.0,0.00012383,30]
[392662569,1761792993273,150.0,0.00012439,30]
[392662570,1761793007428,-208.3376133,0.00025205,2]
[392662571,1761793007455,-200.0,0.00026197,15]
[392662572,1761793007482,-195.3,0.00026593,3]
[392662573,1761793007508,-170.17668981,0.00026652,30]
[392662574,1761793007536,-579.12016347,0.00027295,2]
[392662575,1761793007562,-500.0,0.00027373,2]
[392662576,1761793007589,-403.80339554,0.00027373,2]
[392662577,1761793007616,-399.65875064,0.00027373,2]
[392662578,1761793007644,-195.3,0.00027389,4]
[392662579,1761793007671,-500.0,0.00027394,2]
[392662580,1761793007698,-500.0,0.00027394,2]
[392662581,1761793007731,-500.0,0.00027394,2]
[392662582,1761793007770,-500.0,0.00027394,2]
[392662583,1761793007964,-500.0,0.00027394,2]
[392662584,1761793007992,-500.0,0.00027394,2]
[392662585,1761793008020,-500.0,0.00027394,2]
[392662586,1761793008055,-500.0,0.00027394,2]
[392662587,1761793008090,-500.0,0.00027394,2]
[392662588,1761793008119,-500.0,0.00027394,2]
[392662589,1761793008151,-500.0,0.00027394,2]
[392662590,1761793008179,-500.0,0.00027394,2]
[392662591,1761793008208,-500.0,0.00027394,2]
[392662592,1761793008242,-486.44037374,0.00027394,2]
[392662593,1761793010367,-27.12925252,0.00027394,2]
[392662594,1761793010395,-500.0,0.00027394,2]
[392662595,1761793010424,-312.4545156,0.00027394,2]
[392662596,1761793010453,-536.63186281,0.00027394,2]
[392662597,1761793010482,-500.0,0.00027394,2]
[392662598,1761793010509,-500.0,0.00027394,2]
[392662599,1761793010536,-454.71787194,0.00027394,2]
[392662600,1761793010562,-500.0,0.00027394,2]
[392662601,1761793010590,-500.0,0.00027394,2]
[392662602,1761793010618,-500.0,0.00027394,2]
[392662603,1761793010645,-500.0,0.00027394,2]
[392662604,1761793016401,-500.0,0.00027394,2]
[392662605,1761793016431,-500.0,0.00027394,2]
[392662606,1761793016458,-504.70062072,0.00027394,2]
[392662607,1761793016486,-500.0,0.00027394,2]
[392662608,1761793016513,-164.93857264,0.00027394,2]
[392662609,1761793016542,-500.0,0.00027394,2]
[392662610,1761793016571,-500.0,0.00027394,2]
[392662611,1761793016598,-500.0,0.00027394,2]
[392662612,1761793016625,-500.0,0.00027394,2]
[392662613,1761793016651,-500.0,0.00027394,2]
[392662614,1761793016679,-58.73161328,0.00027394,2]
[392662615,1761793019386,-178.95135915,0.00027394,2]
[392662616,1761793019417,-500.0,0.00027394,2]
[392662617,1761793019444,-527.8005636,0.00027394,2]
[392662618,1761793019472,-500.0,0.00027394,2]
[392662619,1761793019497,-500.0,0.00027394,2]
[392662620,1761793019524,-543.26838672,0.00027394,2]
[392662621,1761793019551,-1200.0,0.00027394,2]
[392662622,1761793019578,-300.0,0.00027394,2]
[392662624,1761793052891,-288.89546503,0.0002589,2]
[392662625,1761793052921,-4422.21906994,0.00027119,2]
[392662626,1761793058969,-577.78093006,0.00027119,2]
[392662627,1761793058999,-300.0,0.00027393,2]
[392662628,1761793059030,-500.0,0.00027394,2]
[392662629,1761793059059,-397.19288186,0.00027394,2]
[392662630,1761793059089,-158.80252497,0.00027394,2]
[392662631,1761793059120,-500.0,0.00027394,2]
[392662632,1761793059150,-500.0,0.00027394,2]
[392662633,1761793059178,-436.13731285,0.00027394,2]
[392662634,1761793059209,-578.50330631,0.00027394,2]
[392662635,1761793064945,-383.43265508,0.00027297,2]
[392662636,1761793064975,-500.0,0.00027373,2]
[392662637,1761793065006,-232.55492301,0.00027394,2]
[392662638,1761793065037,-500.0,0.00027394,2]
[392662639,1761793065071,-500.0,0.00027394,2]
[392662640,1761793065102,-500.0,0.00027394,2]
[392662641,1761793065134,-500.0,0.00027394,2]
[392662642,1761793065170,-496.98283888,0.00027394,2]
[392662645,1761793208909,300.0,0.00025204,2]
[392662646,1761793211719,1200.0,0.00025204,2]
[392662647,1761793262678,300.0,0.00025204,2]
[392662648,1761793359524,763.0,0.00025204,2]
[392662649,1761793382294,300.0,0.00025204,2]
[392662650,1761793402858,150.0,0.00013469,30]
[392662651,1761793408740,618.41214094,0.00025003,14]
[392662652,1761793442363,300.0,0.00025204,2]
[392662654,1761793467862,150.0,0.00013514,30]
[392662655,1761793472120,-500.0,0.00025205,2]
[392662656,1761793472147,-500.0,0.00025205,2]
[392662657,1761793472318,-500.0,0.00025205,2]
[392662658,1761793472348,-500.0,0.00025205,2]
[392662659,1761793472379,-500.0,0.00025205,2]
[392662660,1761793472408,-298.27207608,0.00025205,2]
[392662661,1761793472436,-2069.579058,0.00026063,2]
[392662662,1761793472567,-1810.6934186,0.00026112,2]
[392662663,1761793472678,-3621.3868372,0.00026112,2]
[392662664,1761793472820,-2757.2363256,0.00026112,2]
[392662665,1761793472846,-162.7,0.00026594,3]
[392662666,1761793472875,-648.8706027,0.00026628,2]
[392662667,1761793472901,-256.34283155,0.00027175,18]
[392662668,1761793472929,-351.96104978,0.00027205,2]
[392662669,1761793472954,-200.0,0.00027297,2]
[392662670,1761793472981,-386.08010898,0.00027297,2]
[392662671,1761793473009,-53.62816278,0.00027299,2]
[392662672,1761793473138,-366.37183722,0.00027299,2]
[392662673,1761793473165,-268.2285184,0.00027324,2]
[392662674,1761793473193,-645.49303938,0.00027372,2]
[392662675,1761793473220,-407.21539696,0.00027372,2]
[392662676,1761793473247,-278.30006897,0.00027372,2]
[392662677,1761793473276,-500.0,0.00027372,2]
[392662678,1761793473308,-500.0,0.00027372,2]
[392662679,1761793473335,-170.73687365,0.00027372,2]
[392662680,1761793473365,-500.0,0.00027372,2]
[392662681,1761793473396,-376.35696262,0.00027372,2]
[392662682,1761793473426,-500.0,0.00027372,2]
[392662683,1761793473454,-474.6046056,0.00027372,2]
[392662684,1761793473626,-25.3953944,0.00027372,2]
[392662685,1761793473656,-500.0,0.00027372,2]
[392662686,1761793473688,-500.0,0.00027372,2]
[392662687,1761793473718,-500.0,0.00027372,2]
[392662688,1761793473746,-500.0,0.00027372,2]
[392662689,1761793473777,-500.0,0.00027372,2]
[392662690,1761793473805,-500.0,0.00027372,2]
[392662691,1761793473832,-500.0,0.00027372,2]
[392662692,1761793473945,-500.0,0.00027372,2]
[392662693,1761793473978,-500.0,0.00027372,2]
[392662694,1761793474008,-449.2192112,0.00027372,2]
[392662695,1761793474205,-50.7807888,0.00027372,2]
[392662696,1761793474235,-500.0,0.00027372,2]
[392662697,1761793474268,-500.0,0.00027372,2]
[392662698,1761793474300,-500.0,0.00027372,2]
[392662699,1761793474335,-500.0,0.00027372,2]
[392662700,1761793474369,-500.0,0.00027372,2]
[392662701,1761793474401,-500.0,0.00027372,2]
[392662702,1761793474432,-500.0,0.00027372,2]
[392662703,1761793474462,-500.0,0.00027372,2]
[392662704,1761793474491,-500.0,0.00027372,2]
[392662705,1761793474518,-398.4484224,0.00027372,2]
[392662706,1761793474861,-101.5515776,0.00027372,2]
[392662707,1761793474890,-500.0,0.00027372,2]
[392662708,1761793474919,-500.0,0.00027372,2]
[392662709,1761793474948,-306.01695733,0.00027372,2]
[392662710,1761793474977,-500.0,0.00027372,2]
[392662711,1761793475006,-500.0,0.00027372,2]
[392662712,1761793475038,-500.0,0.00027372,2]
[392662713,1761793475066,-500.0,0.00027372,2]
[392662714,1761793475095,-500.0,0.00027372,2]
[392662715,1761793475125,-500.0,0.00027372,2]
[392662716,1761793475157,-500.0,0.00027372,2]
[392662717,1761793475705,203.0,0.00030137,120]
[392662718,1761793476495,-500.0,0.00027372,2]
[392662719,1761793476523,-500.0,0.00027372,2]
[392662720,1761793476552,-500.0,0.00027372,2]
[392662721,1761793476580,-500.0,0.00027372,2]
[392662722,1761793476608,-500.0,0.00027372,2]
[392662723,1761793476637,-500.0,0.00027372,2]
[392662724,1761793476665,-500.0,0.00027372,2]
[392662725,1761793476696,-500.0,0.00027372,2]
[392662726,1761793476724,-500.0,0.00027372,2]
[392662727,1761793476752,-500.0,0.00027372,2]
[392662728,1761793476795,-500.0,0.00027372,2]
[392662729,1761793476824,-500.0,0.00027372,2]
[392662730,1761793476854,-500.0,0.00027372,2]
[392662731,1761793476884,-500.0,0.00027372,2]
[392662732,1761793476915,-500.0,0.00027372,2]
[392662733,1761793476944,-500.0,0.00027372,2]
[392662734,1761793476974,-500.0,0.00027372,2]
[392662735,1761793477004,-500.0,0.00027372,2]
[392662736,1761793477035,-500.0,0.00027372,2]
[392662737,1761793477065,-500.0,0.00027372,2]
[392662738,1761793477103,-500.0,0.00027372,2]
[392662739,1761793477133,-500.0,0.00027372,2]
[392662740,1761793477164,-500.0,0.00027372,2]
[392662741,1761793477197,-500.0,0.00027372,2]
[392662742,1761793477226,-500.0,0.00027372,2]
[392662743,1761793477258,-500.0,0.00027372,2]
[392662744,1761793477289,-500.0,0.00027372,2]
[392662745,1761793477321,-500.0,0.00027372,2]
[392662746,1761793477349,-403.80339554,0.00027383,2]
[392662747,1761793477376,-162.7,0.00027389,4]
[392662748,1761793477404,-154.45,0.00027395,2]
[392662749,1761793477432,-258.10320892,0.00027396,2]
[392662750,1761793477465,-41.89679108,0.00027396,2]
[392662751,1761793477496,-300.0,0.00027396,2]
[392662752,1761793477525,-300.0,0.00027396,2]
[392662753,1761793477552,-500.0,0.00027397,2]
[392662754,1761793477579,-500.0,0.00027397,2]
[392662755,1761793477606,-500.0,0.00027397,2]
[392662756,1761793477634,-524.21,0.00027397,2]
[392662757,1761793477661,-500.0,0.00027397,2]
[392662758,1761793477687,-500.0,0.00027397,2]
[392662759,1761793477716,-644.56131644,0.00027397,2]
[392662760,1761793477744,-498.19309495,0.00027397,2]
[392662761,1761793477786,-500.0,0.00027397,2]
[392662762,1761793477813,-500.0,0.00027397,2]
[392662763,1761793477839,-500.0,0.00027397,2]
[392662764,1761793477865,-500.0,0.00027397,2]
[392662765,1761793477891,-568.67,0.00027397,2]
[392662766,1761793477919,-500.0,0.00027397,2]
[392662767,1761793477945,-500.0,0.00027397,2]
[392662768,1761793477972,-538.0,0.00027397,2]
[392662769,1761793477999,-500.0,0.00027397,2]
[392662770,1761793478027,-389.54,0.00027397,2]
[392662771,1761793490149,-335.50357316,0.00027297,2]
[392662772,1761793490182,-3236.80381018,0.00027324,2]
[392662773,1761793490337,-2855.39523332,0.00027324,2]
[392662774,1761793490371,-500.0,0.00027371,2]
[392662775,1761793490404,-208.48410696,0.00027371,2]
[392662776,1761793490438,-500.0,0.00027371,2]
[392662777,1761793490473,-500.0,0.00027371,2]
[392662778,1761793490507,-372.25131944,0.00027371,2]
[392662779,1761793490655,-127.74868056,0.00027371,2]
[392662780,1761793490690,-500.0,0.00027371,2]
[392662781,1761793490723,-500.0,0.00027371,2]
[392662782,1761793490756,-500.0,0.00027371,2]
[392662783,1761793490789,-500.0,0.00027371,2]
[392662784,1761793490823,-480.60169573,0.00027371,2]
[392662785,1761793490858,-500.0,0.00027371,2]